bitfinex/quotes_ETHUSD_20250422
["timestamp","ask_amount","ask_price","bid_price","bid_amount"]
[1745339036882,0.7745,1700.5,1700.3,0.18361449]
[1745339037085,6.65520869,1700.5,1700.3,0.18361449]
[1745339037387,6.65520869,1700.5,1700.4,0.18361449]
[1745339037581,12.83813427,1700.7,1700.4,0.18361449]
[1745339037781,13.65753427,1700.7,1700.4,0.18361449]
[1745339037980,13.65753427,1700.7,1700.5,0.18361449]
[1745339038485,13.65753427,1700.7,1700.3,1.0403638]
[1745339038687,13.65753427,1700.7,1700.3,1.87094755]
[1745339038883,13.65753427,1700.7,1700.4,0.18359935]
[1745339039077,13.65753427,1700.7,1700.4,0.77419935]
[1745339039477,7.7774,1700.7,1700.4,6.6665741]
[1745339039658,7.7774,1700.7,1700.5,0.18359935]
[1745339039659,6.958,1700.7,1700.5,0.18359935]
[1745339040077,6.958,1700.7,1700.6,0.18359935]
[1745339043498,6.958,1700.7,1700.6,6.0759741]
[1745339044098,6.958,1700.7,1700.6,9.68357151]
[1745339044399,6.932,1701.1,1701.0,3.0]
[1745339044580,13.62874917,1701.5,1701.0,5.89237475]
[1745339044954,7.7514,1701.5,1700.9,0.5906]
[1745339045291,5.87818749,1701.3,1701.1,0.18359935]
[1745339045505,5.87804715,1701.3,1701.1,0.18359935]
[1745339045658,6.69760362,1701.2,1701.1,0.18359935]
[1745339045858,13.34760362,1701.2,1701.1,0.18359935]
[1745339046182,5.87928967,1700.9,1700.5,3.0]
[1745339046378,13.63111003,1700.8,1700.4,6.65787475]
[1745339046573,13.63111003,1700.8,1700.5,0.18357156]
[1745339046768,7.7514,1700.8,1700.5,0.18357156]
[1745339047055,13.63103397,1700.8,1700.6,0.18357156]
[1745339047273,7.7514,1700.8,1700.6,0.18357156]
[1745339047471,7.7514,1700.8,1700.7,0.18357156]
[1745339048075,6.932,1700.8,1700.7,0.18357156]
[1745339048477,6.932,1700.8,1700.7,3.18357156]
[1745339048771,6.932,1700.8,1700.7,4.09116619]
[1745339049759,6.932,1700.8,1700.7,0.18357156]
[1745339049960,6.932,1701.2,1700.7,3.94907156]
[1745339050563,6.932,1701.2,1700.8,0.18357156]
[1745339050894,5.87878058,1701.1,1700.8,0.63216144]
[1745339051095,12.51823288,1701.1,1700.9,0.18357156]
[1745339051268,5.8794283,1700.9,1700.4,14.11403942]
[1745339051599,2.70562329,1701.1,1700.4,0.8325]
[1745339051600,8.80562329,1701.1,1700.4,0.8325]
[1745339051763,0.7606,1700.8,1700.4,0.8325]
[1745339051965,6.931,1700.7,1700.5,0.18358622]
[1745339052706,12.81093179,1700.7,1700.6,0.18358622]
[1745339052869,14.75604677,1700.7,1700.6,0.18358622]
[1745339053063,5.88122041,1700.4,1699.9,0.8325]
[1745339053263,5.88122041,1700.4,1700.0,0.5877]
[1745339053492,5.88122041,1700.4,1700.0,1.02390788]
[1745339053705,5.88122041,1700.4,1700.1,0.77133004]
[1745339054188,5.88122041,1700.4,1700.2,0.18363004]
[1745339054391,6.64191506,1700.3,1700.2,0.18363004]
[1745339054596,6.64191506,1700.3,1699.9,0.8325]
[1745339055193,6.932,1700.2,1700.0,0.18364402]
[1745339055566,6.932,1700.2,1700.1,0.18364402]
[1745339056019,12.81366098,1700.2,1700.1,0.18364402]
[1745339056194,5.88253536,1700.0,1699.6,0.8325]
[1745339056395,5.88253536,1700.0,1699.7,0.1836688]
[1745339056565,5.88293244,1699.9,1699.7,0.1836688]
[1745339056901,6.64348892,1699.9,1699.8,0.1836688]
[1745339057700,5.88351747,1699.7,1699.4,0.44986692]
[1745339058001,6.932,1699.7,1699.5,6.71256773]
[1745339058220,6.932,1699.7,1699.6,0.18367445]
[1745339059814,12.81550918,1699.7,1699.4,3.0]
[1745339060590,12.81550918,1699.7,1699.5,0.1836935]
[1745339061114,6.932,1699.7,1699.4,3.0]
[1745339061312,6.932,1699.7,1699.4,4.05450677]
[1745339061706,6.932,1699.7,1699.5,0.18368636]
[1745339062435,6.932,1699.7,1699.6,0.8325]
[1745339064017,6.932,1699.7,1699.5,6.71256773]
[1745339064217,6.932,1699.7,1699.4,1.88700677]
[1745339064734,6.932,1699.7,1699.6,3.0]
[1745339065030,6.932,1699.7,1699.6,3.97125677]
[1745339065916,6.932,1699.7,1699.6,4.15493043]
[1745339066604,6.932,1699.7,1699.6,3.18367366]
[1745339066808,6.932,1699.7,1699.5,0.44265764]
[1745339067124,6.932,1699.7,1699.4,4.88700677]
[1745339068933,6.932,1699.7,1699.5,6.89625139]
[1745339069302,6.932,1699.7,1699.5,6.71256773]
[1745339069507,6.932,1699.7,1699.5,7.91624866]
[1745339071130,6.932,1699.7,1699.6,0.5877]
[1745339071329,7.7282,1699.7,1699.4,0.43723475]
[1745339071537,13.61174942,1699.7,1699.3,0.5877]
[1745339071892,6.932,1699.7,1699.4,6.71256773]
[1745339072220,6.932,1699.7,1699.5,5.24903639]
[1745339072825,6.932,1699.7,1699.5,5.06535677]
[1745339073293,6.932,1699.7,1699.5,3.5877]
[1745339073917,12.81539312,1699.7,1699.5,3.5877]
[1745339074945,12.81539312,1699.7,1699.5,3.0]
[1745339075734,6.932,1699.7,1699.5,3.0]
[1745339076263,12.81547529,1699.7,1699.5,3.0]
[1745339076463,6.932,1699.7,1699.5,3.0]
[1745339077673,6.932,1699.7,1699.6,5.90111802]
[1745339078459,6.932,1699.7,1699.6,6.08479932]
[1745339078668,6.932,1699.7,1699.6,9.89119932]
[1745339078827,6.909,1700.2,1700.0,0.8064]
[1745339079027,6.909,1700.2,1700.1,5.90111802]
[1745339079431,6.909,1700.2,1700.1,6.08479932]
[1745339080025,6.909,1700.2,1700.1,0.18361908]
[1745339083073,6.909,1700.2,1700.1,3.18361908]
[1745339083449,6.909,1700.2,1700.1,9.12443976]
[1745339083634,6.909,1700.2,1700.1,12.22955544]
[1745339083838,6.909,1700.2,1700.1,12.1707417]
[1745339084062,6.909,1700.2,1700.1,12.7584417]
[1745339084260,5.88073817,1700.5,1700.1,6.73103645]
[1745339084541,12.7884183,1700.6,1700.3,3.0]
[1745339084941,12.7884183,1700.6,1700.4,0.18361908]
[1745339085174,6.908,1700.6,1700.3,3.0]
[1745339085337,5.88067855,1700.5,1700.2,3.0]
[1745339085543,13.5600698,1700.6,1700.2,3.0]
[1745339085938,13.5600698,1700.6,1700.3,0.18361988]
[1745339086143,7.67964,1700.6,1700.3,0.18361988]
[1745339086543,13.5600439,1700.6,1700.2,3.0]
[1745339086851,19.44057903,1700.6,1700.2,3.0]
[1745339087051,13.5600439,1700.6,1700.2,3.0]
[1745339088041,1.35600439,1700.5,1700.1,0.44230169]
[1745339088243,6.68948132,1700.4,1700.2,0.18362035]
[1745339088643,5.88131506,1700.3,1700.2,0.18362035]
[1745339088838,5.88131506,1700.3,1699.8,6.71756301]
[1745339089076,5.88207792,1700.1,1699.9,0.18365003]
[1745339089252,7.7154,1700.0,1699.9,0.18365003]
[1745339089843,7.7154,1700.0,1699.6,9.71756301]
[1745339090487,13.5978553,1700.0,1699.7,0.18366641]
[1745339090791,7.7154,1700.0,1699.7,3.18366641]
[1745339090990,7.7154,1700.0,1699.6,7.15485625]
[1745339090991,14.95766483,1700.0,1699.8,0.18366641]
[1745339091161,14.95766483,1700.0,1699.7,0.18366641]
[1745339091787,14.95766483,1700.0,1699.8,0.18366641]
[1745339092690,14.95766483,1700.0,1699.7,0.18366641]
[1745339092866,7.7154,1700.0,1699.7,0.18366641]
[1745339093487,7.7154,1700.0,1699.9,3.0]
[1745339093488,6.907,1700.0,1699.9,3.0]
[1745339093876,6.907,1700.0,1699.9,9.06636539]
[1745339094185,12.78910896,1700.4,1699.9,3.18366641]
[1745339094385,12.78910896,1700.4,1699.9,4.8434791]
[1745339094686,6.908,1700.4,1700.0,0.18366641]
[1745339094859,6.69040694,1700.1,1700.0,0.18366641]
[1745339095059,0.8084,1700.1,1700.0,0.18366641]
[1745339095360,6.69040694,1700.1,1700.0,0.18366641]
[1745339095559,6.69040694,1700.1,1699.7,3.0]
[1745339095965,6.69040694,1700.1,1699.8,0.18367303]
[1745339095966,5.88292303,1699.9,1699.8,0.18367303]
[1745339096185,12.78992303,1699.9,1699.8,0.18367303]
[1745339096492,5.88341966,1699.7,1699.2,7.53156301]
[1745339096888,5.88341966,1699.7,1699.3,0.18371079]
[1745339097189,5.8837846,1699.6,1699.4,0.18371079]
[1745339097406,6.69248355,1699.5,1699.4,0.18371079]
[1745339097809,6.69248355,1699.5,1699.1,3.0]
[1745339097975,6.907,1699.4,1699.1,3.0]
[1745339098180,6.907,1699.4,1699.2,0.18373147]
[1745339098783,6.907,1699.4,1699.3,0.18373147]
[1745339101807,6.907,1699.4,1699.3,3.18373147]
[1745339102017,6.907,1699.4,1699.3,5.03185436]
[1745339102992,6.907,1699.4,1699.3,10.91663044]
[1745339103504,6.882,1699.7,1699.4,3.0]
[1745339103720,6.882,1699.7,1699.3,6.08584466]
[1745339103916,0.8084,1699.6,1699.3,0.18373147]
[1745339104118,6.6923104,1699.6,1699.3,0.18373147]
[1745339104314,2.75418477,1699.6,1699.2,3.0]
[1745339104478,8.63817436,1699.6,1699.2,3.0]
[1745339104676,5.8841987,1699.5,1699.2,3.0]
[1745339105121,5.88481473,1699.3,1699.0,5.90211319]
[1745339105280,12.76812241,1699.2,1699.1,0.18374605]
[1745339105480,14.71425612,1699.2,1699.1,0.18374605]
[1745339106318,5.8855197,1699.1,1698.7,6.71611319]
[1745339106501,5.88618771,1698.9,1698.6,0.43255915]
[1745339106681,5.88707074,1698.7,1698.3,6.71611319]
[1745339106886,6.883,1698.6,1698.3,6.71611319]
[1745339107396,6.883,1698.6,1698.3,7.14624694]
[1745339107692,6.883,1698.6,1698.4,0.18381477]
[1745339108193,6.883,1698.6,1698.3,0.43013375]
[1745339108386,6.883,1698.6,1698.2,8.98355987]
[1745339108587,6.883,1698.6,1698.3,0.18380783]
[1745339109224,6.883,1698.6,1698.2,10.61095737]
[1745339109827,6.883,1698.6,1698.3,0.18380642]
[1745339110023,12.77022524,1698.6,1698.3,0.62002572]
[1745339110196,5.88789448,1698.4,1698.3,0.18380642]
[1745339110395,12.58451527,1698.4,1697.9,0.814]
[1745339110624,12.58451527,1698.4,1697.9,3.814]
[1745339110625,6.69629448,1698.4,1697.9,3.814]
[1745339110795,12.58446548,1698.4,1697.9,3.0]
[1745339110994,13.84291203,1698.4,1697.9,3.0]
[1745339111241,13.84291203,1698.4,1697.9,3.44649418]
[1745339112139,5.88909787,1698.1,1697.7,6.76745987]
[1745339112336,5.88909787,1698.1,1697.4,5.89120536]
[1745339112337,13.57659221,1698.0,1697.4,6.76745987]
[1745339112623,5.88979949,1697.9,1697.4,6.76745987]
[1745339112824,7.24749944,1697.9,1697.5,3.0]
[1745339113124,0.8022,1697.8,1697.2,5.98355987]
[1745339113340,5.89065674,1697.7,1697.1,6.76745987]
[1745339113524,5.89080594,1697.6,1697.1,6.76745987]
[1745339113865,6.886,1697.5,1697.1,6.76745987]
[1745339114127,6.886,1697.5,1697.2,3.0]
[1745339114338,6.886,1697.5,1697.1,8.0334682]
[1745339114538,0.8022,1697.4,1696.9,5.98355987]
[1745339114706,0.8022,1697.4,1696.8,12.66061993]
[1745339114896,6.69368821,1697.4,1696.8,6.76745987]
[1745339115100,0.8022,1697.4,1696.8,12.660883]
[1745339115315,6.69379335,1697.4,1696.8,7.21922563]
[1745339115515,5.891821,1697.3,1696.8,7.32940077]
[1745339115722,5.891821,1697.3,1696.8,7.21922563]
[1745339115927,2.16017934,1697.4,1696.8,7.27815367]
[1745339116122,0.8022,1697.4,1696.9,8.98355987]
[1745339116336,6.69373395,1697.4,1696.8,10.21922563]
[1745339116536,8.64082368,1697.4,1696.8,12.44866035]
[1745339116737,8.64082368,1697.4,1696.8,18.47401945]
[1745339117230,0.8022,1697.4,1697.0,3.0]
[1745339117531,12.77703231,1697.5,1697.0,8.98355987]
[1745339117736,6.886,1697.5,1697.0,8.98355987]
[1745339118643,6.886,1697.5,1697.0,9.04248233]
[1745339118933,6.886,1697.5,1697.0,8.98355987]
[1745339119133,6.886,1697.5,1697.0,10.47122226]
[1745339119732,12.77702216,1697.5,1697.0,10.47122226]
[1745339120035,5.89185528,1697.3,1696.8,9.44866035]
[1745339120237,0.8022,1697.2,1696.9,3.0]
[1745339120744,0.8022,1697.2,1696.8,6.43532563]
[1745339121103,0.8022,1697.2,1696.9,3.0]
[1745339121648,1.47160553,1697.2,1696.9,3.0]
[1745339122604,5.89250756,1697.1,1696.6,3.7839]
[1745339122841,6.89,1697.0,1696.6,3.7839]
[1745339123028,6.89,1697.0,1696.7,0.12090567]
[1745339123207,12.78277842,1697.0,1696.7,0.12090567]
[1745339123737,6.89,1697.0,1696.7,0.12090567]
[1745339124141,6.89,1697.0,1696.7,12.38864369]
[1745339124517,6.89,1697.0,1696.7,18.28229208]
[1745339124717,6.89,1697.0,1696.7,12.3885945]
[1745339125049,6.89,1697.0,1696.9,5.98355987]
[1745339125249,6.89,1697.0,1696.9,15.66055905]
[1745339125413,0.8022,1697.4,1696.9,17.94773263]
[1745339125751,5.89183249,1697.3,1696.9,3.11973643]
[1745339125938,5.89183249,1697.3,1697.0,0.5877]
[1745339126136,5.89236509,1697.2,1697.1,0.118459]
[1745339126444,6.68636509,1697.2,1696.8,0.5877]
[1745339126745,6.68634113,1697.2,1696.8,0.5877]
[1745339126959,5.89263006,1697.1,1696.9,0.70743643]
[1745339127157,5.89263006,1697.1,1696.9,0.11973643]
[1745339127158,12.78375191,1697.0,1696.9,0.11973643]
[1745339127324,6.891,1697.0,1696.7,4.02078036]
[1745339127524,6.891,1697.0,1696.8,0.70592365]
[1745339127963,8.16936301,1697.0,1696.8,0.70592365]
[1745339128165,6.68709918,1696.9,1696.8,0.11822365]
[1745339128454,0.794,1696.9,1696.8,0.11822365]
[1745339128655,6.68709918,1696.9,1696.5,0.5877]
[1745339128820,8.76203147,1696.9,1696.8,0.11239805]
[1745339129020,0.794,1696.8,1696.3,5.98355987]
[1745339129219,5.89538579,1696.3,1695.8,6.57125987]
[1745339129423,7.686,1696.2,1695.9,0.77172297]
[1745339129662,5.89622641,1696.0,1695.9,0.30217274]
[1745339129835,8.55865161,1696.0,1695.9,0.11814977]
[1745339130022,5.8969218,1695.8,1695.7,0.4060506]
[1745339130363,6.69074,1695.9,1695.7,0.4060506]
[1745339130549,6.69074,1695.9,1695.8,0.1186688]
[1745339131221,6.69074,1695.9,1695.7,0.4060506]
[1745339131222,5.8969218,1695.8,1695.7,0.4060506]
[1745339131418,7.15568798,1695.8,1695.7,0.4060506]
[1745339132467,6.69074,1695.9,1695.7,0.4060506]
[1745339132629,0.794,1695.9,1695.7,0.4060506]
[1745339132957,6.69060914,1695.9,1695.8,0.11860876]
[1745339133130,0.794,1695.9,1695.8,0.11860876]
[1745339133335,6.69057409,1695.9,1695.8,0.11860876]
[1745339133924,8.13609869,1695.9,1695.8,0.11860876]
[1745339134338,5.8969218,1695.8,1695.7,0.4060506]
[1745339134547,5.8969218,1695.8,1695.7,0.51716664]
[1745339134757,2.2395246,1695.9,1695.7,0.51716664]
[1745339135061,6.6906101,1695.9,1695.7,0.51716664]
[1745339135433,6.87,1696.0,1695.7,6.50072651]
[1745339135639,6.87,1696.0,1695.8,3.0]
[1745339135840,6.87,1696.0,1695.8,3.11119439]
[1745339137956,6.87,1696.0,1695.8,14.90471458]
[1745339138160,6.87,1696.0,1695.9,14.20090542]
[1745339138344,6.87,1696.0,1695.9,6.93002421]
[1745339138684,6.87,1696.0,1695.9,16.0106729]
[1745339138972,0.794,1696.6,1696.0,3.0]
[1745339139149,0.794,1696.8,1696.4,5.98355987]
[1745339139472,8.9420363,1696.9,1696.6,5.98355987]
[1745339139666,6.87,1696.9,1696.6,5.98355987]
[1745339139863,6.87,1696.9,1696.7,3.94547661]
[1745339140042,6.87,1696.9,1696.8,5.98355987]
[1745339140469,20.236,1697.7,1697.0,0.8303]
[1745339140780,27.106,1697.7,1697.3,3.0]
[1745339140976,26.312,1697.7,1697.4,0.11282652]
[1745339141274,26.312,1697.7,1697.3,8.89167146]
[1745339141451,26.312,1697.7,1697.5,0.11230789]
[1745339141649,26.312,1697.7,1697.4,6.27846876]
[1745339141970,26.312,1697.7,1697.5,0.29416238]
[1745339142172,26.312,1697.7,1697.5,0.72988773]
[1745339142473,26.312,1697.7,1697.5,3.54592994]
[1745339142640,26.312,1697.7,1697.6,5.98355987]
[1745339142843,6.87,1697.7,1697.6,9.27715084]
[1745339143043,6.87,1697.7,1697.6,11.1375385]
[1745339143466,6.868,1698.1,1697.7,3.0]
[1745339143668,6.868,1698.1,1697.7,3.8303]
[1745339143979,12.7570762,1698.1,1697.7,3.8303]
[1745339144175,12.7570762,1698.1,1697.7,3.94018422]
[1745339144676,12.75710208,1698.1,1697.7,3.94018422]
[1745339144877,5.88945993,1698.0,1697.7,3.10988422]
[1745339145079,5.88928833,1698.0,1697.7,3.10988422]
[1745339145577,12.75710208,1698.1,1697.7,3.0]
[1745339146080,5.88955947,1698.0,1697.7,3.0]
[1745339146448,14.62166096,1698.1,1697.7,3.0]
[1745339146783,20.51088685,1698.1,1697.7,3.0]
[1745339147077,14.62166096,1698.1,1697.7,3.0]
[1745339147283,5.88947397,1698.0,1697.7,3.0]
[1745339147881,11.77908058,1698.0,1697.7,3.0]
[1745339148082,5.88947397,1698.0,1697.7,3.0]
[1745339148379,7.94040153,1698.0,1697.5,0.43572535]
[1745339148548,5.89021443,1697.8,1697.6,0.1096869]
[1745339148886,5.89021443,1697.8,1697.2,3.8303]
[1745339149049,5.89036993,1697.7,1697.6,0.1096869]
[1745339149250,5.89036993,1697.7,1697.3,0.18392168]
[1745339149582,5.89036993,1697.7,1697.3,0.43744556]
[1745339149783,5.89036993,1697.7,1697.4,0.11096306]
[1745339150087,5.89018915,1697.8,1697.2,3.8303]
[1745339150297,5.89018915,1697.8,1697.5,0.11032494]
[1745339150459,5.89018915,1697.8,1697.3,0.38303]
[1745339150665,5.8894096,1698.0,1697.6,0.1096869]
[1745339150896,6.868,1698.1,1697.8,3.0]
[1745339151111,6.868,1698.1,1697.8,4.56849688]
[1745339151461,6.868,1698.1,1698.0,0.8075]
[1745339151669,6.868,1698.1,1698.0,3.8075]
[1745339151888,6.868,1698.1,1698.0,10.54346009]
[1745339152397,19.441,1698.4,1698.0,10.54346009]
[1745339152561,1.9441,1698.3,1698.0,3.8075]
[1745339152765,1.9441,1698.3,1697.8,3.0]
[1745339152994,19.441,1698.4,1697.8,8.88986326]
[1745339153401,25.32900363,1698.4,1697.8,8.88986326]
[1745339154296,19.441,1698.4,1697.8,8.88980404]
[1745339154503,6.866,1698.5,1698.2,0.8075]
[1745339155000,6.866,1698.5,1698.2,1.3952]
[1745339156097,6.866,1698.5,1698.2,0.8075]
[1745339156301,5.88630078,1698.9,1698.4,3.0]
[1745339156504,5.8863244,1698.9,1698.4,3.0]
[1745339156802,25.54145266,1699.0,1698.4,3.0]
[1745339157001,19.65541848,1699.0,1698.4,3.0]
[1745339157205,5.88719061,1698.7,1698.3,6.73596009]
[1745339157869,5.88710575,1698.7,1698.3,6.73596009]
[1745339159304,5.88686349,1698.7,1698.3,6.73596009]
[1745339159502,11.77406145,1698.7,1698.3,6.73596009]
[1745339159707,5.88686349,1698.7,1698.3,6.73596009]
[1745339160204,11.77339022,1698.8,1698.3,6.73596009]
[1745339160393,19.65526944,1699.0,1698.3,8.49819319]
[1745339160599,13.7694,1699.0,1698.3,8.43931576]
[1745339160805,5.88644256,1698.9,1698.3,8.43931576]
[1745339161200,5.88642158,1698.9,1698.3,8.43931576]
[1745339161511,5.88665801,1698.8,1698.4,0.84393158]
[1745339161883,19.65533851,1699.0,1698.3,6.73596009]
[1745339162088,5.88750001,1698.6,1698.2,7.29759661]
[1745339162311,5.88764883,1698.5,1698.2,0.44009661]
[1745339162486,5.88789448,1698.4,1698.0,7.53766009]
[1745339162688,5.88838223,1698.3,1697.9,6.05]
[1745339162886,12.72789807,1698.4,1698.0,6.73596009]
[1745339163410,6.84,1698.4,1698.0,6.73596009]
[1745339163595,12.72792089,1698.4,1698.0,9.4289037]
[1745339164188,5.88852405,1698.3,1698.0,9.4289037]
[1745339164391,14.65656641,1698.4,1698.0,3.44399505]
[1745339165093,20.54474025,1698.4,1698.0,3.44399505]
[1745339165285,14.65656641,1698.4,1698.0,3.44399505]
[1745339165515,18.61621729,1698.4,1698.0,3.44399505]
[1745339165814,5.88893469,1698.1,1698.0,0.44399505]
[1745339166012,5.88893469,1698.1,1697.8,3.8017]
[1745339166210,5.88954188,1698.0,1697.6,6.8517]
[1745339166515,5.88908777,1698.1,1697.6,0.8017]
[1745339166814,6.69373343,1698.3,1697.9,5.98490865]
[1745339166981,12.94,1698.4,1698.0,0.8017]
[1745339167315,6.84,1698.4,1698.3,5.98490865]
[1745339167614,5.88670931,1698.8,1698.4,3.8017]
[1745339167615,6.84,1698.8,1698.4,3.8017]
[1745339167779,18.61341643,1698.8,1698.4,3.8017]
[1745339167979,12.72664201,1698.8,1698.4,3.8017]
[1745339168214,6.84,1698.8,1698.4,3.8017]
[1745339168409,6.84,1698.8,1698.5,5.98490865]
[1745339168610,6.84,1698.8,1698.5,11.87244773]
[1745339168775,6.84,1698.8,1698.6,0.18379278]
[1745339169175,6.84,1698.8,1698.6,3.0]
[1745339169589,6.84,1698.8,1698.7,9.16868468]
[1745339169887,6.84,1698.8,1698.7,9.97038468]
[1745339171429,6.84,1698.8,1698.7,9.16868468]
[1745339172629,6.84,1698.8,1698.7,3.18377603]
[1745339172834,6.84,1698.8,1698.7,0.18377603]
[1745339173136,8.89531691,1698.8,1698.7,0.18377603]
[1745339173436,13.50920812,1698.8,1698.7,0.18377603]
[1745339173636,13.50920812,1698.8,1698.4,3.43186163]
[1745339173941,13.50920812,1698.8,1698.5,0.18380733]
[1745339174440,6.84,1698.8,1698.6,3.18380733]
[1745339174644,6.84,1698.8,1698.7,9.79450865]
[1745339175103,6.84,1698.8,1698.7,9.97831598]
[1745339175306,13.41050812,1698.8,1698.7,0.18380733]
[1745339175734,7.524,1698.8,1698.7,0.18380733]
[1745339175927,6.84,1698.8,1698.7,0.18380733]
[1745339176328,12.72650812,1698.8,1698.7,0.18380733]
[1745339176535,12.72650812,1698.8,1698.4,5.98490865]
[1745339176739,0.7827,1698.7,1698.4,5.98490865]
[1745339177041,6.84,1698.8,1698.5,3.18380654]
[1745339177209,6.84,1698.8,1698.6,0.31838065]
[1745339177410,6.84,1698.8,1698.7,0.18380654]
[1745339178560,6.84,1698.8,1698.7,3.18380654]
[1745339179614,6.84,1698.8,1698.7,0.18380654]
[1745339180629,13.50920812,1698.8,1698.7,0.18380654]
[1745339181019,6.84,1698.8,1698.7,0.18380654]
[1745339185863,6.84,1698.8,1698.7,6.16871519]
[1745339186045,6.1,1699.0,1698.8,3.0]
[1745339186362,13.51543673,1699.2,1698.9,0.18380654]
[1745339187063,13.51543673,1699.2,1699.0,0.18380654]
[1745339187259,13.51525381,1699.2,1699.0,0.18380654]
[1745339187462,13.51525381,1699.2,1699.1,0.18380654]
[1745339188736,13.51522241,1699.2,1699.1,0.18380654]
[1745339190562,7.6301,1699.2,1699.1,0.18380654]
[1745339190770,13.51522241,1699.2,1699.1,0.18380654]
[1745339192533,6.838,1699.2,1699.1,0.18380654]
[1745339193266,13.99541899,1699.2,1699.1,0.18380654]
[1745339193468,5.88573498,1699.1,1698.7,6.78870865]
[1745339194003,5.88616163,1698.9,1698.8,0.18377358]
[1745339194143,11.98616163,1698.9,1698.8,0.18377358]
[1745339194346,12.77826163,1698.9,1698.8,0.18377358]
[1745339194551,5.88682493,1698.8,1698.3,5.98490865]
[1745339194747,5.88688045,1698.7,1698.3,5.98490865]
[1745339194952,5.88688045,1698.7,1698.4,0.18380987]
[1745339195350,5.88688045,1698.7,1698.5,0.18380987]
[1745339195551,12.70078728,1698.8,1698.5,0.18380987]
[1745339195777,12.70078728,1698.8,1698.5,7.29089951]
[1745339195778,6.814,1698.8,1698.5,7.29089951]
[1745339195964,6.814,1698.8,1698.6,3.18380987]
[1745339196388,6.814,1698.8,1698.7,0.18380987]
[1745339196987,12.70050812,1698.8,1698.7,0.18380987]
[1745339197156,6.814,1698.8,1698.7,0.18380987]
[1745339197356,12.70050812,1698.8,1698.7,0.18380987]
[1745339198190,14.55917646,1698.8,1698.7,0.18380987]
[1745339198892,21.45127646,1698.8,1698.7,0.18380987]
[1745339199088,28.18327646,1698.8,1698.7,0.18380987]
[1745339199389,11.77700112,1698.3,1697.9,0.8038]
[1745339199588,6.68021107,1698.4,1697.9,3.8038]
[1745339199755,6.68021107,1698.4,1698.0,6.5491425]
[1745339199756,5.88811107,1698.4,1698.0,6.5491425]
[1745339200487,5.88811107,1698.4,1698.1,0.18385385]
[1745339200690,5.88858145,1698.3,1698.1,0.18385385]
[1745339200856,6.70458791,1698.2,1698.1,0.18385385]
[1745339201055,0.816,1698.2,1697.8,5.98490865]
[1745339201409,12.70339206,1698.3,1697.9,3.0]
[1745339201693,12.70339206,1698.3,1698.0,0.18385553]
[1745339201897,18.59175648,1698.3,1698.0,0.18385553]
[1745339202396,5.8887829,1698.2,1698.0,0.18385553]
[1745339202693,12.70325777,1698.3,1698.1,0.18385553]
[1745339202863,6.815,1698.3,1698.1,0.18385553]
[1745339203056,6.815,1698.3,1698.1,0.96095553]
[1745339203252,13.97384123,1698.3,1698.2,0.18385553]
[1745339203653,13.97384123,1698.3,1697.8,0.7771]
[1745339203654,5.88907057,1698.1,1697.8,0.7771]
[1745339204254,5.88907057,1698.1,1697.9,0.18386914]
[1745339204451,5.8892815,1698.0,1697.9,0.18386914]
[1745339205681,5.8892815,1698.0,1697.7,3.0]
[1745339205996,5.89041826,1697.7,1697.4,5.98490865]
[1745339206198,12.59705484,1697.7,1697.5,0.18389899]
[1745339206550,12.59709804,1697.7,1697.5,0.18389899]
[1745339206913,6.70648191,1697.7,1697.5,0.18389899]
[1745339207204,6.70648191,1697.7,1697.3,3.7771]
[1745339207690,5.89082077,1697.6,1697.3,3.7771]
[1745339207985,6.70648191,1697.7,1697.4,0.1839197]
[1745339208192,6.70648191,1697.7,1697.3,3.7771]
[1745339208563,6.70648191,1697.7,1697.1,5.89236615]
[1745339208564,5.89195806,1697.3,1697.1,0.7771]
[1745339208787,11.78394334,1697.3,1696.9,0.7771]
[1745339208956,11.78392871,1697.3,1696.9,0.7771]
[1745339209293,12.59924215,1697.4,1697.0,5.98490865]
[1745339209510,5.891752,1697.3,1697.0,5.98490865]
[1745339209985,0.816,1697.4,1697.1,3.0]
[1745339210191,6.40698395,1697.6,1697.3,0.7771]
[1745339210398,6.1,1697.6,1697.3,0.7771]
[1745339212308,11.99081579,1697.6,1697.3,0.7771]
[1745339212689,6.1,1697.6,1697.3,0.7771]
[1745339213306,5.89037573,1697.7,1697.3,0.7771]
[1745339214687,18.8051748,1697.8,1697.4,5.98490865]
[1745339214887,12.915,1697.8,1697.4,5.98490865]
[1745339215201,12.915,1697.8,1697.5,0.7771]
[1745339219133,6.815,1697.8,1697.5,0.7771]
[1745339220130,0.816,1698.1,1697.7,3.0]
[1745339220330,6.818,1698.2,1697.8,12.93364734]
[1745339220835,6.818,1698.2,1697.8,18.82338767]
[1745339220996,6.818,1698.2,1697.8,7.04400865]
[1745339221199,6.818,1698.2,1697.9,5.88934515]
[1745339221574,6.818,1698.2,1697.9,13.07210904]
[1745339221901,6.818,1698.2,1698.0,0.18383721]
[1745339222525,6.818,1698.2,1697.9,19.05701769]
[1745339223313,6.818,1698.2,1698.0,0.1838469]
[1745339223930,6.818,1698.2,1697.8,3.7591]
[1745339224417,6.818,1698.2,1697.8,9.64903907]
[1745339224619,6.818,1698.2,1697.9,0.1838665]
[1745339225216,6.818,1698.2,1697.8,3.7591]
[1745339225436,14.96952536,1698.2,1697.8,3.0]
[1745339225765,14.96952536,1698.2,1697.4,1.3468]
[1745339225766,0.7809,1697.9,1697.4,1.3468]
[1745339226058,0.7809,1697.9,1697.4,7.23804211]
[1745339226559,0.7809,1697.9,1697.5,0.1838981]
[1745339226760,12.918,1698.2,1697.8,0.7591]
[1745339227558,12.918,1698.2,1697.9,0.1838981]
[1745339227735,6.818,1698.2,1697.9,9.07337072]
[1745339228054,6.818,1698.2,1698.0,0.1838981]
[1745339228569,6.818,1698.2,1698.1,0.1838981]
[1745339228939,6.818,1698.2,1697.9,3.0]
[1745339229339,6.818,1698.2,1698.0,0.18385893]
[1745339229839,6.818,1698.2,1698.1,0.18385893]
[1745339230226,14.16928791,1698.2,1698.1,0.18385893]